[Event "Late-Titled-Tuesday-Blitz-June-18-2024"]
[Site "Chess.com"]
[Date "2024.06.18"]
[Round "3"]
[White "Orest_Vovk"]
[Black "CombativeWombat"]
[Result "1-0"]
[WhiteElo "2557"]
[BlackElo "2301"]
[TimeControl "180+1"]
[EndTime "14:30:09 PDT"]
[Termination "Orest_Vovk won by checkmate"]

1. g4 {[%clk 0:03:00.9]} 1... e5 {[%clk 0:02:57.2]} 2. g5 {[%clk 0:03:00.2]}
2... d5 {[%clk 0:02:55.5]} 3. Bg2 {[%clk 0:02:59.2]} 3... c6 {[%clk 0:02:47.6]}
4. d4 {[%clk 0:02:57.6]} 4... e4 {[%clk 0:02:46.3]} 5. c4 {[%clk 0:02:57.3]}
5... Bb4+ {[%clk 0:02:45]} 6. Nc3 {[%clk 0:02:57]} 6... Ne7 {[%clk 0:02:45.1]}
7. Qb3 {[%clk 0:02:56.5]} 7... a5 {[%clk 0:02:38.7]} 8. a3 {[%clk 0:02:54.9]}
8... Bxc3+ {[%clk 0:02:34.8]} 9. Qxc3 {[%clk 0:02:54.8]} 9... Be6 {[%clk
0:02:31.9]} 10. c5 {[%clk 0:02:47.4]} 10... Nd7 {[%clk 0:02:30.6]} 11. h4 {[%clk
0:02:47]} 11... b6 {[%clk 0:02:21.4]} 12. b4 {[%clk 0:02:46.6]} 12... axb4
{[%clk 0:02:20.4]} 13. axb4 {[%clk 0:02:46.5]} 13... bxc5 {[%clk 0:02:16.4]} 14.
dxc5 {[%clk 0:02:41.5]} 14... Rxa1 {[%clk 0:02:07.4]} 15. Qxa1 {[%clk
0:02:40.6]} 15... Qb8 {[%clk 0:02:08]} 16. Bd2 {[%clk 0:02:32.5]} 16... O-O
{[%clk 0:01:53.7]} 17. h5 {[%clk 0:02:28.5]} 17... Nf5 {[%clk 0:01:29.1]} 18. h6
{[%clk 0:02:21.7]} 18... Qe5 {[%clk 0:01:03.6]} 19. Bc3 {[%clk 0:02:05.6]} 19...
d4 {[%clk 0:01:03.7]} 20. Bb2 {[%clk 0:02:05.5]} 20... e3 {[%clk 0:00:57.2]} 21.
Nf3 {[%clk 0:01:51.2]} 21... exf2+ {[%clk 0:00:57.2]} 22. Kxf2 {[%clk
0:01:51.4]} 22... Qg3+ {[%clk 0:00:57.9]} 23. Kg1 {[%clk 0:01:50.6]} 23... Ne3
{[%clk 0:00:58.3]} 24. Rh2 {[%clk 0:01:46.2]} 24... Bh3 {[%clk 0:00:57.2]} 25.
Qe1 {[%clk 0:01:00.8]} 25... Qg4 {[%clk 0:00:56.7]} 26. Qh4 {[%clk 0:00:53.9]}
26... Nxg2 {[%clk 0:00:53.3]} 27. Qxg4 {[%clk 0:00:51.7]} 27... Bxg4 {[%clk
0:00:52.6]} 28. Rxg2 {[%clk 0:00:50.6]} 28... Bxf3 {[%clk 0:00:48.9]} 29. exf3
{[%clk 0:00:50.3]} 29... Ne5 {[%clk 0:00:42.4]} 30. hxg7 {[%clk 0:00:45.7]}
30... Rd8 {[%clk 0:00:40.1]} 31. f4 {[%clk 0:00:38.9]} 31... Nd3 {[%clk
0:00:40.5]} 32. f5 {[%clk 0:00:25.7]} 32... Kxg7 {[%clk 0:00:40.9]} 33. Ba1
{[%clk 0:00:19.8]} 33... f6 {[%clk 0:00:29.3]} 34. Rd2 {[%clk 0:00:15.1]} 34...
Ne5 {[%clk 0:00:28.4]} 35. Kg2 {[%clk 0:00:12]} 35... d3 {[%clk 0:00:27.3]} 36.
Bxe5 {[%clk 0:00:07.9]} 36... fxe5 {[%clk 0:00:27.5]} 37. Kf3 {[%clk 0:00:08.5]}
37... Rd4 {[%clk 0:00:27.1]} 38. Ke3 {[%clk 0:00:07.8]} 38... Rxb4 {[%clk
0:00:22.9]} 39. Rxd3 {[%clk 0:00:08.1]} 39... Rc4 {[%clk 0:00:22.9]} 40. Rd7+
{[%clk 0:00:07.8]} 40... Kg8 {[%clk 0:00:22.2]} 41. f6 {[%clk 0:00:08.2]} 41...
Rxc5 {[%clk 0:00:22.6]} 42. Ke4 {[%clk 0:00:08.3]} 42... Ra5 {[%clk 0:00:14.2]}
43. Kf5 {[%clk 0:00:08.5]} 43... e4+ {[%clk 0:00:14.6]} 44. Ke6 {[%clk 0:00:09]}
44... Rd5 {[%clk 0:00:10.3]} 45. Rxd5 {[%clk 0:00:05.5]} 45... cxd5 {[%clk
0:00:10.5]} 46. Ke7 {[%clk 0:00:06.1]} 46... e3 {[%clk 0:00:07.4]} 47. f7+
{[%clk 0:00:06.5]} 47... Kg7 {[%clk 0:00:08.1]} 48. f8=Q+ {[%clk 0:00:07.4]}
48... Kg6 {[%clk 0:00:09]} 49. Qf6+ {[%clk 0:00:07.9]} 49... Kh5 {[%clk
0:00:09.4]} 50. Qe5 {[%clk 0:00:08.5]} 50... d4 {[%clk 0:00:09.4]} 51. Qxd4
{[%clk 0:00:08.8]} 51... e2 {[%clk 0:00:09.3]} 52. Qe3 {[%clk 0:00:09]} 52... h6
{[%clk 0:00:08.7]} 53. gxh6 {[%clk 0:00:07.9]} 53... Kg6 {[%clk 0:00:07.8]} 54.
Qxe2 {[%clk 0:00:08]} 54... Kh7 {[%clk 0:00:08.7]} 55. Qg4 {[%clk 0:00:07.5]}
55... Kh8 {[%clk 0:00:08.9]} 56. Qg7# {[%clk 0:00:07.2]} 1-0

[Event "Late-Titled-Tuesday-Blitz-June-18-2024"]
[Site "Chess.com"]
[Date "2024.06.18"]
[Round "3"]
[White "Chessdreamer2020"]
[Black "randomo"]
[Result "0-1"]
[WhiteElo "2561"]
[BlackElo "2321"]
[TimeControl "180+1"]
[EndTime "14:30:12 PDT"]
[Termination "randomo won by checkmate"]

1. e4 {[%clk 0:03:00.9]} 1... e5 {[%clk 0:02:58.4]} 2. Nf3 {[%clk 0:03:01]} 2...
Nc6 {[%clk 0:02:59]} 3. Bc4 {[%clk 0:03:00.8]} 3... Bc5 {[%clk 0:02:58.9]} 4. c3
{[%clk 0:03:00.5]} 4... Qf6 {[%clk 0:02:58.8]} 5. d4 {[%clk 0:02:51.7]} 5...
exd4 {[%clk 0:02:58.3]} 6. e5 {[%clk 0:02:52]} 6... Qg6 {[%clk 0:02:56.7]} 7.
cxd4 {[%clk 0:02:50.2]} 7... Bb4+ {[%clk 0:02:51.6]} 8. Nc3 {[%clk 0:02:49.8]}
8... d5 {[%clk 0:02:48]} 9. Bxd5 {[%clk 0:02:42.7]} 9... Nge7 {[%clk 0:02:47.1]}
10. Bb3 {[%clk 0:02:20.4]} 10... Bg4 {[%clk 0:02:40.5]} 11. Be3 {[%clk
0:02:16.4]} 11... Rd8 {[%clk 0:02:38.1]} 12. a3 {[%clk 0:02:06.6]} 12... Ba5
{[%clk 0:02:37.6]} 13. Bc2 {[%clk 0:01:48.4]} 13... Qh5 {[%clk 0:02:34.9]} 14.
Be4 {[%clk 0:01:14.6]} 14... O-O {[%clk 0:02:23.6]} 15. Qc2 {[%clk 0:01:01.3]}
15... Bb6 {[%clk 0:01:52.9]} 16. Rd1 {[%clk 0:00:56.2]} 16... Rfe8 {[%clk
0:01:37.7]} 17. h3 {[%clk 0:00:54.3]} 17... Nf5 {[%clk 0:01:31.6]} 18. O-O
{[%clk 0:00:52.4]} 18... Nxe3 {[%clk 0:01:09.4]} 19. fxe3 {[%clk 0:00:48.3]}
19... Bc8 {[%clk 0:01:08.9]} 20. Nd5 {[%clk 0:00:41.4]} 20... Ne7 {[%clk
0:00:48.5]} 21. Nf4 {[%clk 0:00:38.2]} 21... Qh6 {[%clk 0:00:46.4]} 22. Rf2
{[%clk 0:00:33.6]} 22... Ng6 {[%clk 0:00:45.7]} 23. Nxg6 {[%clk 0:00:32.3]}
23... hxg6 {[%clk 0:00:46.3]} 24. Rdf1 {[%clk 0:00:32.4]} 24... Be6 {[%clk
0:00:41.6]} 25. Qe2 {[%clk 0:00:23.1]} 25... c6 {[%clk 0:00:41.3]} 26. Bb1
{[%clk 0:00:22.5]} 26... Bc7 {[%clk 0:00:39.2]} 27. b4 {[%clk 0:00:22.2]} 27...
b5 {[%clk 0:00:38.3]} 28. Nd2 {[%clk 0:00:22]} 28... Bd5 {[%clk 0:00:37.4]} 29.
Ne4 {[%clk 0:00:21.9]} 29... f5 {[%clk 0:00:34]} 30. Nc5 {[%clk 0:00:21]} 30...
Bc4 {[%clk 0:00:32.9]} 31. Bd3 {[%clk 0:00:20.2]} 31... Bd5 {[%clk 0:00:33.1]}
32. Rf4 {[%clk 0:00:18.9]} 32... Bf7 {[%clk 0:00:31.6]} 33. Kh2 {[%clk
0:00:18.6]} 33... Bb6 {[%clk 0:00:31.9]} 34. Qf2 {[%clk 0:00:17.7]} 34... Bxc5
{[%clk 0:00:32.1]} 35. bxc5 {[%clk 0:00:18.5]} 35... a5 {[%clk 0:00:31.7]} 36.
g4 {[%clk 0:00:18.5]} 36... Bd5 {[%clk 0:00:25.8]} 37. gxf5 {[%clk 0:00:18.2]}
37... g5 {[%clk 0:00:26.4]} 38. Rg4 {[%clk 0:00:18.6]} 38... b4 {[%clk
0:00:23.6]} 39. axb4 {[%clk 0:00:17.4]} 39... axb4 {[%clk 0:00:24.5]} 40. Rfg1
{[%clk 0:00:17.9]} 40... Ra8 {[%clk 0:00:21.4]} 41. Rxg5 {[%clk 0:00:17.2]}
41... Ra2 {[%clk 0:00:21.3]} 42. Rxg7+ {[%clk 0:00:17]} 42... Qxg7 {[%clk
0:00:20.6]} 43. Rxg7+ {[%clk 0:00:17.9]} 43... Kxg7 {[%clk 0:00:21.1]} 44. Be2
{[%clk 0:00:17.9]} 44... Bc4 {[%clk 0:00:21.1]} 45. Qg2+ {[%clk 0:00:15.9]}
45... Kf8 {[%clk 0:00:21.4]} 46. Bxc4 {[%clk 0:00:14.2]} 46... Rxg2+ {[%clk
0:00:20.8]} 47. Kxg2 {[%clk 0:00:15.1]} 47... Ra8 {[%clk 0:00:20.1]} 48. f6
{[%clk 0:00:14.7]} 48... Ra3 {[%clk 0:00:20.5]} 49. Kf3 {[%clk 0:00:12.6]} 49...
b3 {[%clk 0:00:20.8]} 50. e6 {[%clk 0:00:12.5]} 50... b2 {[%clk 0:00:20.8]} 51.
e7+ {[%clk 0:00:12.8]} 51... Ke8 {[%clk 0:00:21.1]} 52. d5 {[%clk 0:00:06.8]}
52... b1=Q {[%clk 0:00:21.3]} 53. d6 {[%clk 0:00:07.2]} 53... Qf5+ {[%clk
0:00:21.4]} 54. Ke2 {[%clk 0:00:05.7]} 54... Qxf6 {[%clk 0:00:22.3]} 55. Bd3
{[%clk 0:00:02]} 55... Ra2+ {[%clk 0:00:21.5]} 56. Ke1 {[%clk 0:00:01.1]} 56...
Qa1+ {[%clk 0:00:21.4]} 57. Bb1 {[%clk 0:00:01.2]} 57... Qxb1# {[%clk
0:00:21.8]} 0-1

[Event "Late-Titled-Tuesday-Blitz-June-18-2024"]
[Site "Chess.com"]
[Date "2024.06.18"]
[Round "3"]
[White "Meri-Arabidze"]
[Black "artin10862"]
[Result "0-1"]
[WhiteElo "2665"]
[BlackElo "2939"]
[TimeControl "180+1"]
[EndTime "14:30:14 PDT"]
[Termination "artin10862 won on time"]

1. d4 {[%clk 0:02:57]} 1... d5 {[%clk 0:01:56.3]} 2. c4 {[%clk 0:02:56.7]} 2...
e6 {[%clk 0:01:56.4]} 3. Nc3 {[%clk 0:02:56.7]} 3... c6 {[%clk 0:01:56.4]} 4.
cxd5 {[%clk 0:02:53.8]} 4... exd5 {[%clk 0:01:56.1]} 5. Nf3 {[%clk 0:02:54]}
5... Bf5 {[%clk 0:01:55.3]} 6. Bf4 {[%clk 0:02:43.6]} 6... Nf6 {[%clk
0:01:53.4]} 7. e3 {[%clk 0:02:41.2]} 7... h6 {[%clk 0:01:50.3]} 8. Bd3 {[%clk
0:02:36]} 8... Bxd3 {[%clk 0:01:50]} 9. Qxd3 {[%clk 0:02:36.9]} 9... Be7 {[%clk
0:01:50.2]} 10. O-O {[%clk 0:02:35.9]} 10... O-O {[%clk 0:01:50.9]} 11. a3
{[%clk 0:02:35.2]} 11... a5 {[%clk 0:01:50.4]} 12. Rab1 {[%clk 0:02:34.2]} 12...
Nbd7 {[%clk 0:01:29.8]} 13. Qc2 {[%clk 0:02:32.3]} 13... Nb6 {[%clk 0:01:24.7]}
14. Ne5 {[%clk 0:02:29.6]} 14... a4 {[%clk 0:01:22.1]} 15. h3 {[%clk 0:02:26.4]}
15... Nfd7 {[%clk 0:01:21.4]} 16. Nxd7 {[%clk 0:02:18.6]} 16... Qxd7 {[%clk
0:01:21]} 17. Rfe1 {[%clk 0:01:59.7]} 17... Ra6 {[%clk 0:01:17.1]} 18. Rbd1
{[%clk 0:01:50.7]} 18... Rfa8 {[%clk 0:01:14.9]} 19. e4 {[%clk 0:01:50.2]} 19...
dxe4 {[%clk 0:01:10.5]} 20. Qxe4 {[%clk 0:01:51.1]} 20... Bf6 {[%clk 0:00:55.5]}
21. Be5 {[%clk 0:01:50.5]} 21... Re8 {[%clk 0:00:51.9]} 22. Qf3 {[%clk
0:01:31.6]} 22... Bxe5 {[%clk 0:00:51.6]} 23. dxe5 {[%clk 0:01:31.6]} 23... Qc7
{[%clk 0:00:51]} 24. Qe2 {[%clk 0:01:18.9]} 24... Ra5 {[%clk 0:00:43.3]} 25. f4
{[%clk 0:01:18.1]} 25... f6 {[%clk 0:00:41.2]} 26. Ne4 {[%clk 0:00:46]} 26...
fxe5 {[%clk 0:00:35.6]} 27. f5 {[%clk 0:00:46.4]} 27... Nd5 {[%clk 0:00:34.2]}
28. f6 {[%clk 0:00:46.9]} 28... Nxf6 {[%clk 0:00:29.8]} 29. Nxf6+ {[%clk
0:00:41.3]} 29... gxf6 {[%clk 0:00:30.7]} 30. Qg4+ {[%clk 0:00:37.4]} 30... Qg7
{[%clk 0:00:30.2]} 31. Qxg7+ {[%clk 0:00:18.9]} 31... Kxg7 {[%clk 0:00:31.1]}
32. Rd7+ {[%clk 0:00:19.3]} 32... Kg6 {[%clk 0:00:31.1]} 33. Rxb7 {[%clk
0:00:20.2]} 33... Rd8 {[%clk 0:00:21.2]} 34. Rc1 {[%clk 0:00:16.9]} 34... Rb5
{[%clk 0:00:16.8]} 35. Rxb5 {[%clk 0:00:08.5]} 35... cxb5 {[%clk 0:00:17.7]} 36.
Rc5 {[%clk 0:00:07.9]} 36... Rb8 {[%clk 0:00:17.9]} 37. Kf2 {[%clk 0:00:08.2]}
37... b4 {[%clk 0:00:16.2]} 38. Ra5 {[%clk 0:00:06.7]} 38... bxa3 {[%clk
0:00:13.2]} 39. bxa3 {[%clk 0:00:07.2]} 39... Rb2+ {[%clk 0:00:14.1]} 40. Kg1
{[%clk 0:00:06.9]} 40... Kf5 {[%clk 0:00:14.5]} 41. Rxa4 {[%clk 0:00:07.2]}
41... e4 {[%clk 0:00:15]} 42. g3 {[%clk 0:00:02.7]} 42... h5 {[%clk 0:00:13.8]}
43. Kf1 {[%clk 0:00:02.5]} 43... h4 {[%clk 0:00:13.7]} 44. gxh4 {[%clk
0:00:02.8]} 44... Kf4 {[%clk 0:00:13.6]} 45. h5 {[%clk 0:00:03.4]} 45... Kf3
{[%clk 0:00:13.2]} 46. Ke1 {[%clk 0:00:02.3]} 46... e3 {[%clk 0:00:13.6]} 47.
Rd4 {[%clk 0:00:01.4]} 47... Rb1+ {[%clk 0:00:13.6]} 48. Rd1 {[%clk 0:00:01.6]}
48... Rxd1+ {[%clk 0:00:14.5]} 49. Kxd1 {[%clk 0:00:02.4]} 49... Kf2 {[%clk
0:00:15.4]} 50. h6 {[%clk 0:00:01.5]} 50... e2+ {[%clk 0:00:16.3]} 51. Kc2
{[%clk 0:00:01.5]} 51... e1=Q {[%clk 0:00:17.2]} 0-1

[Event "Late-Titled-Tuesday-Blitz-June-18-2024"]
[Site "Chess.com"]
[Date "2024.06.18"]
[Round "3"]
[White "bob1263"]
[Black "CSB7"]
[Result "0-1"]
[WhiteElo "2507"]
[BlackElo "2767"]
[TimeControl "180+1"]
[EndTime "14:30:17 PDT"]
[Termination "CSB7 won on time"]

1. d4 {[%clk 0:02:58.8]} 1... Nf6 {[%clk 0:02:59.5]} 2. c4 {[%clk 0:02:56.7]}
2... g6 {[%clk 0:02:59.1]} 3. Nc3 {[%clk 0:02:55.8]} 3... Bg7 {[%clk 0:02:57.8]}
4. e4 {[%clk 0:02:55.7]} 4... d6 {[%clk 0:02:57.5]} 5. f3 {[%clk 0:02:55.5]}
5... O-O {[%clk 0:02:54.4]} 6. Be3 {[%clk 0:02:55.1]} 6... Nc6 {[%clk
0:02:53.5]} 7. Nge2 {[%clk 0:02:53.1]} 7... a6 {[%clk 0:02:52.8]} 8. Qd2 {[%clk
0:02:53]} 8... Na5 {[%clk 0:02:52.7]} 9. Ng3 {[%clk 0:02:51.1]} 9... b5 {[%clk
0:02:51.2]} 10. Bh6 {[%clk 0:02:48.9]} 10... Nxc4 {[%clk 0:02:17.4]} 11. Bxc4
{[%clk 0:02:47.2]} 11... bxc4 {[%clk 0:02:18.3]} 12. h4 {[%clk 0:02:46.5]} 12...
e5 {[%clk 0:02:18]} 13. Bxg7 {[%clk 0:02:01.5]} 13... Kxg7 {[%clk 0:02:18.9]}
14. h5 {[%clk 0:02:00.5]} 14... Be6 {[%clk 0:01:26.5]} 15. hxg6 {[%clk
0:01:52.2]} 15... fxg6 {[%clk 0:01:27.4]} 16. dxe5 {[%clk 0:01:50.8]} 16... dxe5
{[%clk 0:01:27.2]} 17. Qg5 {[%clk 0:01:31.4]} 17... Rb8 {[%clk 0:00:44.8]} 18.
Rd1 {[%clk 0:01:21.2]} 18... Qe7 {[%clk 0:00:45]} 19. Qxe5 {[%clk 0:01:09.8]}
19... Kg8 {[%clk 0:00:40.4]} 20. Rd2 {[%clk 0:00:34.9]} 20... Rfe8 {[%clk
0:00:34.7]} 21. O-O {[%clk 0:00:33.8]} 21... Bf7 {[%clk 0:00:28.6]} 22. Qxe7
{[%clk 0:00:32.8]} 22... Rxe7 {[%clk 0:00:29.5]} 23. Rfd1 {[%clk 0:00:32.6]}
23... Kg7 {[%clk 0:00:25.7]} 24. Nf1 {[%clk 0:00:31.8]} 24... c5 {[%clk
0:00:18.9]} 25. Ne3 {[%clk 0:00:23.1]} 25... Reb7 {[%clk 0:00:19.2]} 26. Na4
{[%clk 0:00:22.3]} 26... Rb4 {[%clk 0:00:16.8]} 27. Nxc5 {[%clk 0:00:20.9]}
27... Rxb2 {[%clk 0:00:16.9]} 28. e5 {[%clk 0:00:20.2]} 28... Nh5 {[%clk
0:00:14.8]} 29. e6 {[%clk 0:00:19.9]} 29... Be8 {[%clk 0:00:15.2]} 30. Rxb2
{[%clk 0:00:19.1]} 30... Rxb2 {[%clk 0:00:16.1]} 31. Nxc4 {[%clk 0:00:18.6]}
31... Rc2 {[%clk 0:00:14.9]} 32. Nd6 {[%clk 0:00:18.1]} 32... Bc6 {[%clk
0:00:09.9]} 33. e7 {[%clk 0:00:17]} 33... Rxc5 {[%clk 0:00:08.8]} 34. e8=Q
{[%clk 0:00:15.8]} 34... Bxe8 {[%clk 0:00:08.8]} 35. Nxe8+ {[%clk 0:00:15.9]}
35... Kh6 {[%clk 0:00:07.7]} 36. Rd6 {[%clk 0:00:12.6]} 36... Rc1+ {[%clk
0:00:05.5]} 37. Kf2 {[%clk 0:00:11.5]} 37... Rc2+ {[%clk 0:00:05.8]} 38. Ke3
{[%clk 0:00:11.5]} 38... Rxa2 {[%clk 0:00:05.2]} 39. g4 {[%clk 0:00:11.4]} 39...
Ra3+ {[%clk 0:00:03.2]} 40. Kf2 {[%clk 0:00:08.5]} 40... Nf4 {[%clk 0:00:02.9]}
41. Rd7 {[%clk 0:00:05.5]} 41... Kg5 {[%clk 0:00:02.4]} 42. Rxh7 {[%clk
0:00:04.1]} 42... Ra2+ {[%clk 0:00:03.1]} 43. Kf1 {[%clk 0:00:02.8]} 43... Ra1+
{[%clk 0:00:03.2]} 44. Kf2 {[%clk 0:00:02.4]} 44... Ra2+ {[%clk 0:00:03.9]} 45.
Kf1 {[%clk 0:00:02.7]} 45... Nd3 {[%clk 0:00:04.6]} 46. Nd6 {[%clk 0:00:01.6]}
46... Kf4 {[%clk 0:00:04.2]} 47. Rf7+ {[%clk 0:00:01]} 47... Kg3 {[%clk
0:00:04.4]} 48. Ne4+ {[%clk 0:00:01.1]} 48... Kh2 {[%clk 0:00:02.5]} 0-1

[Event "Late-Titled-Tuesday-Blitz-June-18-2024"]
[Site "Chess.com"]
[Date "2024.06.18"]
[Round "3"]
[White "ritanovikova"]
[Black "Levanzovsky"]
[Result "0-1"]
[WhiteElo "2193"]
[BlackElo "2409"]
[TimeControl "180+1"]
[EndTime "14:30:17 PDT"]
[Termination "Levanzovsky won on time"]

1. e4 {[%clk 0:02:59.4]} 1... e5 {[%clk 0:02:58.5]} 2. Nf3 {[%clk 0:02:59.2]}
2... Nc6 {[%clk 0:02:59.1]} 3. Bc4 {[%clk 0:02:58.8]} 3... Bc5 {[%clk
0:02:59.1]} 4. c3 {[%clk 0:02:57.6]} 4... Nf6 {[%clk 0:02:59.4]} 5. d4 {[%clk
0:02:56.7]} 5... exd4 {[%clk 0:02:57.6]} 6. cxd4 {[%clk 0:02:57.6]} 6... Bb4+
{[%clk 0:02:57.6]} 7. Bd2 {[%clk 0:02:58.5]} 7... Bxd2+ {[%clk 0:02:57.1]} 8.
Nbxd2 {[%clk 0:02:57.8]} 8... d5 {[%clk 0:02:57.9]} 9. exd5 {[%clk 0:02:57.6]}
9... Nxd5 {[%clk 0:02:58.8]} 10. O-O {[%clk 0:02:57.4]} 10... Nce7 {[%clk
0:02:58]} 11. Rc1 {[%clk 0:02:58]} 11... O-O {[%clk 0:02:57.1]} 12. Ne5 {[%clk
0:02:55.8]} 12... Nb6 {[%clk 0:02:52.1]} 13. Bb3 {[%clk 0:02:47]} 13... c6
{[%clk 0:02:46.6]} 14. Ndf3 {[%clk 0:02:42.7]} 14... Bf5 {[%clk 0:02:41.4]} 15.
Qd2 {[%clk 0:02:39.2]} 15... Ned5 {[%clk 0:02:36.6]} 16. a4 {[%clk 0:02:33.4]}
16... a5 {[%clk 0:02:33.9]} 17. Nd3 {[%clk 0:02:28.2]} 17... Re8 {[%clk
0:02:25.3]} 18. Nc5 {[%clk 0:02:27.3]} 18... Qc7 {[%clk 0:02:25.8]} 19. Rfe1
{[%clk 0:02:15.9]} 19... h6 {[%clk 0:02:23.9]} 20. Ne5 {[%clk 0:02:10.2]} 20...
Be6 {[%clk 0:01:57.9]} 21. Re2 {[%clk 0:01:57.5]} 21... Nc8 {[%clk 0:01:34.5]}
22. Rce1 {[%clk 0:01:55.1]} 22... Nd6 {[%clk 0:01:33.2]} 23. Ned3 {[%clk
0:01:46.7]} 23... Bg4 {[%clk 0:01:24.4]} 24. Re5 {[%clk 0:01:32]} 24... b6
{[%clk 0:01:20.4]} 25. Ne4 {[%clk 0:01:17.1]} 25... Nxe4 {[%clk 0:01:19.9]} 26.
R1xe4 {[%clk 0:01:14.9]} 26... Rxe5 {[%clk 0:01:15.7]} 27. dxe5 {[%clk 0:01:13]}
27... Bf5 {[%clk 0:01:14]} 28. Re1 {[%clk 0:01:10.5]} 28... Rd8 {[%clk
0:01:11.1]} 29. Nf4 {[%clk 0:00:32.5]} 29... Nxf4 {[%clk 0:01:00.3]} 30. Qxf4
{[%clk 0:00:32.4]} 30... Be6 {[%clk 0:01:01.2]} 31. Bxe6 {[%clk 0:00:32]} 31...
fxe6 {[%clk 0:01:02.1]} 32. Qc4 {[%clk 0:00:27.2]} 32... Rd5 {[%clk 0:01:01]}
33. f4 {[%clk 0:00:26.3]} 33... Kf7 {[%clk 0:00:56.1]} 34. h3 {[%clk 0:00:25.7]}
34... b5 {[%clk 0:00:46.7]} 35. axb5 {[%clk 0:00:24.8]} 35... Qb6+ {[%clk
0:00:47.2]} 36. Kh2 {[%clk 0:00:23.3]} 36... cxb5 {[%clk 0:00:47.7]} 37. Qe2
{[%clk 0:00:18.1]} 37... Qd4 {[%clk 0:00:44.3]} 38. Rf1 {[%clk 0:00:12.3]} 38...
g6 {[%clk 0:00:41.7]} 39. Qc2 {[%clk 0:00:09.7]} 39... Rc5 {[%clk 0:00:38]} 40.
Qe2 {[%clk 0:00:08.9]} 40... Qc4 {[%clk 0:00:36]} 41. Qf2 {[%clk 0:00:08.5]}
41... a4 {[%clk 0:00:32.8]} 42. Rd1 {[%clk 0:00:08.3]} 42... Ke7 {[%clk
0:00:30.7]} 43. Re1 {[%clk 0:00:03.4]} 43... Kd7 {[%clk 0:00:25.3]} 44. Qg3
{[%clk 0:00:02.5]} 44... b4 {[%clk 0:00:22.7]} 45. Re3 {[%clk 0:00:01.5]} 45...
Kc6 {[%clk 0:00:17.4]} 46. Rf3 {[%clk 0:00:01.8]} 46... Qe4 {[%clk 0:00:15.7]}
47. Qh4 {[%clk 0:00:01.4]} 47... Rxe5 {[%clk 0:00:12.9]} 0-1

[Event "Late-Titled-Tuesday-Blitz-June-18-2024"]
[Site "Chess.com"]
[Date "2024.06.18"]
[Round "3"]
[White "Omranalhosani21"]
[Black "K_A_S_T_O_R"]
[Result "0-1"]
[WhiteElo "2548"]
[BlackElo "2837"]
[TimeControl "180+1"]
[EndTime "14:30:18 PDT"]
[Termination "K_A_S_T_O_R won by resignation"]

1. e4 {[%clk 0:03:00.1]} 1... c5 {[%clk 0:02:59.9]} 2. Nf3 {[%clk 0:02:59.8]}
2... d6 {[%clk 0:03:00.2]} 3. d4 {[%clk 0:02:59.9]} 3... cxd4 {[%clk 0:03:00.4]}
4. Nxd4 {[%clk 0:03:00.8]} 4... Nf6 {[%clk 0:03:00.8]} 5. Nc3 {[%clk 0:03:00.3]}
5... a6 {[%clk 0:03:01]} 6. Be2 {[%clk 0:03:00.5]} 6... e5 {[%clk 0:02:59.6]} 7.
Nb3 {[%clk 0:02:59.9]} 7... Be7 {[%clk 0:03:00]} 8. O-O {[%clk 0:02:59]} 8...
O-O {[%clk 0:02:59.7]} 9. a4 {[%clk 0:02:57.6]} 9... Be6 {[%clk 0:02:54.6]} 10.
Be3 {[%clk 0:02:55]} 10... Nbd7 {[%clk 0:02:51.4]} 11. f3 {[%clk 0:02:38.8]}
11... Nb6 {[%clk 0:02:45.6]} 12. Na5 {[%clk 0:02:31.5]} 12... Qc7 {[%clk
0:02:42.1]} 13. Qe1 {[%clk 0:02:24.3]} 13... d5 {[%clk 0:02:40.3]} 14. exd5
{[%clk 0:02:19.6]} 14... Nbxd5 {[%clk 0:02:40.3]} 15. Nxd5 {[%clk 0:02:17.5]}
15... Nxd5 {[%clk 0:02:40.7]} 16. Bd2 {[%clk 0:02:16.4]} 16... Nf4 {[%clk
0:02:30.4]} 17. Bc3 {[%clk 0:01:53.3]} 17... b6 {[%clk 0:02:23.2]} 18. Nb3
{[%clk 0:01:51.8]} 18... Nxe2+ {[%clk 0:02:19.4]} 19. Qxe2 {[%clk 0:01:50.1]}
19... Bc4 {[%clk 0:02:19.6]} 20. Qxe5 {[%clk 0:01:36.5]} 20... Qxe5 {[%clk
0:02:18.6]} 21. Bxe5 {[%clk 0:01:36.9]} 21... Bxf1 {[%clk 0:02:18.4]} 22. Kxf1
{[%clk 0:01:36.1]} 22... Rac8 {[%clk 0:02:18.9]} 23. c3 {[%clk 0:01:35.4]} 23...
Rfe8 {[%clk 0:02:17]} 24. Bd4 {[%clk 0:01:29.5]} 24... Bd8 {[%clk 0:02:17]} 25.
Nd2 {[%clk 0:01:25.4]} 25... Bc7 {[%clk 0:02:15.6]} 26. Ra3 {[%clk 0:01:22.6]}
26... Rb8 {[%clk 0:02:10.6]} 27. g3 {[%clk 0:01:18]} 27... Bd6 {[%clk
0:02:05.8]} 28. Rb3 {[%clk 0:01:15.8]} 28... b5 {[%clk 0:02:05.7]} 29. axb5
{[%clk 0:01:13.6]} 29... axb5 {[%clk 0:02:06.1]} 30. Ne4 {[%clk 0:01:13.3]}
30... Bf8 {[%clk 0:02:04.9]} 31. g4 {[%clk 0:00:57.3]} 31... Rec8 {[%clk
0:01:58.4]} 32. Ke2 {[%clk 0:00:55.6]} 32... b4 {[%clk 0:01:56.1]} 33. Kd3
{[%clk 0:00:52.9]} 33... bxc3 {[%clk 0:01:52.7]} 34. Rxb8 {[%clk 0:00:52.8]}
34... Rxb8 {[%clk 0:01:52]} 35. bxc3 {[%clk 0:00:48.6]} 35... f6 {[%clk
0:01:51.9]} 36. c4 {[%clk 0:00:48.2]} 36... Rb3+ {[%clk 0:01:49.9]} 37. Nc3
{[%clk 0:00:48.3]} 37... Bb4 {[%clk 0:01:44.6]} 38. c5 {[%clk 0:00:43.9]} 38...
Bxc3 {[%clk 0:01:44.4]} 39. Bxc3 {[%clk 0:00:44.8]} 39... Kf7 {[%clk 0:01:44.8]}
40. Kc4 {[%clk 0:00:42.5]} 40... Rb1 {[%clk 0:01:44.6]} 41. Bd2 {[%clk
0:00:34.4]} 41... Ke6 {[%clk 0:01:43.2]} 42. Bf4 {[%clk 0:00:34.4]} 42... Rf1
{[%clk 0:01:41.5]} 43. Bg3 {[%clk 0:00:31.2]} 43... Rxf3 {[%clk 0:01:41.2]} 44.
Kd4 {[%clk 0:00:31]} 44... f5 {[%clk 0:01:34.4]} 45. gxf5+ {[%clk 0:00:28.1]}
45... Rxf5 {[%clk 0:01:34.9]} 46. Bd6 {[%clk 0:00:27.2]} 46... Rd5+ {[%clk
0:01:32.5]} 47. Ke4 {[%clk 0:00:27.3]} 47... Rd2 {[%clk 0:01:32.4]} 48. Ke3
{[%clk 0:00:26.2]} 48... Rd1 {[%clk 0:01:29.8]} 49. Kf4 {[%clk 0:00:21.7]} 49...
Kd5 {[%clk 0:01:28.3]} 50. Kf5 {[%clk 0:00:20.3]} 50... Rf1+ {[%clk 0:01:28.3]}
51. Kg5 {[%clk 0:00:20.4]} 51... Ke6 {[%clk 0:01:25]} 52. Kg4 {[%clk 0:00:20]}
52... Rc1 {[%clk 0:01:21.9]} 53. Kf4 {[%clk 0:00:18.3]} 53... Rc4+ {[%clk
0:01:22.2]} 54. Kf3 {[%clk 0:00:15.8]} 54... Kf5 {[%clk 0:01:22.1]} 55. Ke3
{[%clk 0:00:16.1]} 55... Ke6 {[%clk 0:01:18.9]} 56. Kf3 {[%clk 0:00:16.1]} 56...
g5 {[%clk 0:01:19]} 57. Kg3 {[%clk 0:00:16.2]} 57... h5 {[%clk 0:01:19.2]} 58.
Kf3 {[%clk 0:00:16.8]} 58... Kd5 {[%clk 0:01:19]} 59. Ke3 {[%clk 0:00:15.2]}
59... Rc3+ {[%clk 0:01:17.3]} 60. Kd2 {[%clk 0:00:13.9]} 60... Rf3 {[%clk
0:01:17]} 61. Ke2 {[%clk 0:00:13.9]} 61... g4 {[%clk 0:01:17.5]} 62. Be7 {[%clk
0:00:12.4]} 62... Rc3 {[%clk 0:01:10.8]} 63. Bd6 {[%clk 0:00:12]} 63... Ke4
{[%clk 0:01:11]} 64. Kf2 {[%clk 0:00:11.6]} 64... h4 {[%clk 0:01:10.3]} 65. Kg2
{[%clk 0:00:10.9]} 65... Rc2+ {[%clk 0:01:10]} 66. Kf1 {[%clk 0:00:10.4]} 66...
Ke3 {[%clk 0:01:09.6]} 67. Be7 {[%clk 0:00:08.9]} 67... Kf3 {[%clk 0:01:07.7]}
68. Bxh4 {[%clk 0:00:07.6]} 68... Rxh2 {[%clk 0:01:05.3]} 0-1